fUSD/lending_fUSD_20251023
["ID","MTS","AMOUNT","RATE_DAILY","PERIOD"]
[392183653,1761243042108,-500.0,0.00043835,120]
[392183655,1761243042117,-500.0,0.00043835,120]
[392183657,1761243042127,-572.07,0.00043835,120]
[392183659,1761243042136,-500.0,0.00043835,120]
[392183661,1761243042145,-500.0,0.00043835,120]
[392183663,1761243042155,-500.0,0.00043835,120]
[392183665,1761243042165,-500.0,0.00043835,120]
[392183667,1761243042174,-500.0,0.00043835,120]
[392183669,1761243042183,-500.0,0.00043835,120]
[392183671,1761243042192,-500.0,0.00043835,120]
[392183673,1761243042201,-500.0,0.00043835,120]
[392183675,1761243042210,-500.0,0.00043835,120]
[392183677,1761243042219,-500.0,0.00043835,120]
[392183679,1761243042228,-500.0,0.00043835,120]
[392183681,1761243042238,-500.0,0.00043835,120]
[392183683,1761243042247,-500.0,0.00043835,120]
[392183685,1761243042256,-500.0,0.00043835,120]
[392183687,1761243042265,-500.0,0.00043835,120]
[392183689,1761243042274,-500.0,0.00043835,120]
[392183691,1761243042283,-500.0,0.00043835,120]
[392183693,1761243042292,-500.0,0.00043835,120]
[392183695,1761243042302,-500.0,0.00043835,120]
[392183697,1761243042311,-500.0,0.00043835,120]
[392183699,1761243042320,-500.0,0.00043835,120]
[392183701,1761243042329,-500.0,0.00043835,120]
[392183703,1761243042338,-500.0,0.00043835,120]
[392183705,1761243042348,-500.0,0.00043835,2]
[392183708,1761243042358,-500.0,0.00043835,2]
[392183709,1761243042367,-500.0,0.00043835,120]
[392183711,1761243042376,-500.0,0.00043835,120]
[392183712,1761243042385,-535.29690419,0.00043835,120]
[392183713,1761243042395,-500.0,0.00043835,120]
[392183714,1761243042404,-199.91919044,0.00043835,120]
[392183715,1761243042413,-500.0,0.00043835,120]
[392183716,1761243042422,-500.0,0.00043835,120]
[392183717,1761243042431,-500.0,0.00043835,120]
[392183719,1761243042440,-250.3690674,0.00043835,120]
[392183721,1761243042449,-500.0,0.00043835,120]
[392183723,1761243042459,-500.0,0.00043835,30]
[392183725,1761243042468,-500.0,0.00043835,120]
[392183727,1761243042478,-500.0,0.00043835,30]
[392183729,1761243042487,-500.0,0.00043835,120]
[392183731,1761243042495,-500.0,0.00043835,120]
[392183733,1761243042504,-500.0,0.00043835,120]
[392183735,1761243042513,-542.45,0.00043835,120]
[392183736,1761243042522,-501.5,0.00043835,120]
[392183739,1761243042532,-500.0,0.00043835,120]
[392183741,1761243042543,-500.0,0.00043835,120]
[392183743,1761243042552,-467.66,0.00043835,120]
[392183745,1761243042561,-500.0,0.00043835,120]
[392183746,1761243042570,-500.0,0.00043835,120]
[392183748,1761243042579,-500.0,0.00043835,120]
[392183750,1761243042587,-500.0,0.00043835,120]
[392183752,1761243042596,-500.0,0.00043835,120]
[392183754,1761243042606,-500.0,0.00043835,120]
[392183757,1761243042615,-500.0,0.00043835,12]
[392183759,1761243042624,-500.0,0.00043835,12]
[392183761,1761243042633,-460.11,0.00043835,120]
[392183762,1761243042642,-500.0,0.00043835,120]
[392183764,1761243042651,-500.0,0.00043835,120]
[392183767,1761243042660,-500.0,0.00043835,120]
[392183768,1761243042669,-500.0,0.00043835,120]
[392183770,1761243042679,-500.0,0.00043835,120]
[392183772,1761243042688,-500.0,0.00043835,120]
[392183774,1761243042698,-500.0,0.00043835,120]
[392183777,1761243042707,-500.0,0.00043835,120]
[392183779,1761243042716,-500.0,0.00043835,120]
[392183782,1761243042725,-500.0,0.00043835,120]
[392183784,1761243042734,-500.0,0.00043835,120]
[392183786,1761243042743,-500.0,0.00043835,120]
[392183787,1761243042752,-500.0,0.00043835,120]
[392183790,1761243042761,-500.0,0.00043835,120]
[392183792,1761243042770,-500.0,0.00043835,120]
[392183794,1761243042779,-500.0,0.00043835,120]
[392183796,1761243042790,-500.0,0.00043835,120]
[392183797,1761243042799,-500.0,0.00043835,120]
[392183800,1761243042808,-500.0,0.00043835,120]
[392183801,1761243042817,-500.0,0.00043835,120]
[392183803,1761243042827,-213.07,0.00043835,120]
[392183806,1761243042835,-500.0,0.00043835,120]
[392183807,1761243042844,-500.0,0.00043835,120]
[392183809,1761243042854,-500.0,0.00043835,120]
[392183812,1761243042863,-500.0,0.00043835,120]
[392183813,1761243042872,-500.0,0.00043835,120]
[392183815,1761243042881,-500.0,0.00043835,120]
[392183817,1761243042891,-500.0,0.00043835,120]
[392183819,1761243042900,-500.0,0.00043835,120]
[392183821,1761243042909,-500.0,0.00043835,120]
[392183823,1761243042918,-500.0,0.00043835,120]
[392183825,1761243042927,-500.0,0.00043835,120]
[392183827,1761243042936,-500.0,0.00043835,120]
[392183829,1761243042945,-500.0,0.00043835,120]
[392183831,1761243042954,-500.0,0.00043835,120]
[392183833,1761243042964,-500.0,0.00043835,120]
[392183835,1761243042973,-500.0,0.00043835,120]
[392183837,1761243042983,-500.0,0.00043835,120]
[392183839,1761243042993,-560.07,0.00043835,120]
[392183841,1761243043003,-500.0,0.00043835,120]
[392183843,1761243043013,-500.0,0.00043835,120]
[392183846,1761243043026,-500.0,0.00043835,120]
[392183847,1761243043036,-500.0,0.00043835,120]
[392183849,1761243043046,-500.0,0.00043835,120]
[392183851,1761243043055,-546.31,0.00043835,120]
[392183853,1761243043064,-500.0,0.00043835,120]
[392183855,1761243043074,-508.07,0.00043835,120]
[392183857,1761243043083,-500.0,0.00043835,120]
[392183859,1761243043093,-500.0,0.00043835,120]
[392183861,1761243043103,-156.69,0.00043835,120]
[392183863,1761243043113,-500.0,0.00043835,120]
[392183865,1761243043122,-350.0,0.00043835,120]
[392183867,1761243043131,-500.0,0.00043835,120]
[392183869,1761243043140,-500.0,0.00043835,120]
[392183871,1761243043150,-500.0,0.00043835,120]
[392183873,1761243043159,-500.0,0.00043835,120]
[392183875,1761243043169,-500.0,0.00043835,120]
[392183877,1761243043178,-500.0,0.00043835,2]
[392183880,1761243043188,-500.0,0.00043835,2]
[392183882,1761243043198,-632.52744251,0.00043835,120]
[392183884,1761243043207,-500.0,0.00043835,120]
[392183886,1761243043216,-500.0,0.00043835,120]
[392183888,1761243043225,-500.0,0.00043835,120]
[392183889,1761243043234,-500.0,0.00043835,120]
[392183891,1761243043244,-500.0,0.00043835,120]
[392183894,1761243043253,-500.0,0.00043835,120]
[392183895,1761243043262,-500.0,0.00043835,120]
[392183897,1761243043272,-500.0,0.00043835,120]
[392183900,1761243043282,-500.0,0.00043835,120]
[392183902,1761243043291,-500.0,0.00043886,2]
[392183904,1761243043300,-8222.2021557,0.00043886,3]
[392183905,1761243043309,-12505.9548625,0.00043886,3]
[392183908,1761243043319,-275.683668,0.00043896,120]
[392183909,1761243043327,-151.0,0.00043896,120]
[392183911,1761243043336,-151.0,0.00043896,120]
[392183914,1761243043346,-151.459336,0.00043896,120]
[392183916,1761243043356,-1047.679057,0.00043896,120]
[392183918,1761243043365,-151.0,0.00043896,120]
[392183920,1761243043374,-1047.679057,0.00043896,120]
[392183922,1761243043383,-154.119924,0.00043896,120]
[392183924,1761243043392,-1047.679057,0.00043896,120]
[392183926,1761243043402,-1047.679057,0.00043896,120]
[392183928,1761243043410,-151.0,0.00043896,120]
[392183930,1761243043419,-151.0,0.00043896,120]
[392183932,1761243043428,-151.0,0.00043896,120]
[392183934,1761243043437,-151.0,0.00043896,120]
[392183936,1761243043446,-151.0,0.00043896,60]
[392183938,1761243043456,-162.247465,0.00043896,120]
[392183940,1761243043465,-8222.2021557,0.00043896,3]
[392183942,1761243043474,-12505.9548625,0.00043896,3]
[392183944,1761243043483,-20000.0,0.00043906,10]
[392183946,1761243043492,-151.0,0.00043906,120]
[392183948,1761243043501,-154.641549,0.00043907,120]
[392183950,1761243043510,-151.0,0.00043907,120]
[392183952,1761243043519,-151.0,0.00043907,120]
[392183954,1761243043528,-151.0,0.00043907,120]
[392183956,1761243043537,-151.0,0.00043907,120]
[392183957,1761243043546,-151.0,0.00043907,120]
[392183958,1761243043555,-217.630516,0.00043907,120]
[392183959,1761243043563,-151.0,0.00043907,120]
[392183960,1761243043572,-151.0,0.00043907,120]
[392183961,1761243043584,-217.630516,0.00043907,120]
[392183962,1761243043592,-264.451516,0.00043907,120]
[392183963,1761243043602,-151.0,0.00043907,120]
[392183965,1761243043611,-152.869683,0.00043907,120]
[392183967,1761243043620,-151.0,0.00043907,120]
[392183969,1761243043629,-217.630516,0.00043907,120]
[392183971,1761243043639,-151.0,0.00043907,120]
[392183973,1761243043648,-151.0,0.00043907,120]
[392183975,1761243043656,-217.630516,0.00043907,120]
[392183977,1761243043666,-1288.13400577,0.00043907,15]
[392183979,1761243043675,-150.0,0.00043937,30]
[392183981,1761243043684,-157.39476089,0.0004394,120]
[392183983,1761243043692,-2027.07859907,0.00044034,15]
[392183985,1761243043701,-8222.2021557,0.00044072,3]
[392183987,1761243043710,-475.46,0.00044082,30]
[392183989,1761243043719,-475.46,0.00044082,30]
[392183991,1761243043728,-557.0,0.00044085,2]
[392183993,1761243043737,-2076.18,0.00044085,2]
[392183995,1761243043747,-6531.0,0.00044085,2]
[392183997,1761243043756,-3610.593,0.00044085,2]
[392183999,1761243043765,-329.0,0.00044126,2]
[392184001,1761243043776,-12505.9548625,0.00044127,3]
[392184003,1761243043785,-8222.2021557,0.00044137,3]
[392184005,1761243043795,-16444.4043114,0.00044147,3]
[392184007,1761243043804,-25011.9097251,0.00044147,3]
[392184009,1761243043813,-500.0,0.00044156,120]
[392184011,1761243043822,-446.48,0.00044156,120]
[392184013,1761243043832,-500.0,0.00044156,120]
[392184015,1761243043841,-26280.34,0.00044157,2]
[392184017,1761243043851,-151.0,0.00044157,120]
[392184019,1761243043860,-151.0,0.00044157,120]
[392184021,1761243043869,-151.0,0.00044157,120]
[392184023,1761243043879,-204.12756,0.00044157,120]
[392184025,1761243043888,-204.12756,0.00044157,120]
[392184027,1761243043898,-204.12756,0.00044157,120]
[392184029,1761243043907,-204.12756,0.00044157,120]
[392184031,1761243043916,-293.84694775,0.00044157,120]
[392184033,1761243043926,-151.0,0.00044157,120]
[392184035,1761243043935,-1288.13400577,0.0004416,15]
[392184037,1761243043944,-329.0,0.00044176,30]
[392184039,1761243043954,-2027.07859907,0.0004433,15]
[392184041,1761243043963,-160.53137192,0.00044338,15]
[392184043,1761243043972,-1288.13400577,0.00044414,15]
[392184045,1761243043982,-1041.0,0.00044456,5]
[392184047,1761243043991,-329.0,0.00044483,2]
[392184049,1761243044001,-8222.2021557,0.00044485,3]
[392184051,1761243044010,-500.0,0.00044494,2]
[392184054,1761243044023,-12505.9548625,0.00044494,3]
[392184056,1761243044035,-8222.2021557,0.00044494,3]
[392184057,1761243044044,-151.0,0.00044495,120]
[392184059,1761243044055,-151.0,0.00044495,120]
[392184061,1761243044067,-151.0,0.00044495,120]
[392184063,1761243044076,-151.0,0.00044495,120]
[392184065,1761243044086,-151.0,0.00044495,120]
[392184067,1761243044095,-151.0,0.00044495,120]
[392184069,1761243044105,-151.0,0.00044495,60]
[392184072,1761243044114,-151.0,0.00044495,120]
[392184074,1761243044123,-151.0,0.00044495,120]
[392184076,1761243044133,-151.0,0.00044495,120]
[392184078,1761243044142,-151.0,0.00044504,120]
[392184080,1761243044151,-151.0,0.00044504,120]
[392184082,1761243044160,-151.0,0.00044504,120]
[392184084,1761243044170,-159.356829,0.00044504,120]
[392184086,1761243044179,-151.0,0.00044504,120]
[392184088,1761243044188,-151.0,0.00044504,120]
[392184090,1761243044198,-155.395566,0.00044504,120]
[392184092,1761243044207,-151.0,0.00044504,120]
[392184094,1761243044216,-151.0,0.00044504,120]
[392184096,1761243044226,-151.0,0.00044504,120]
[392184097,1761243044235,-686.623495,0.00044504,30]
[392184099,1761243044244,-151.0,0.00044504,120]
[392184101,1761243044253,-215.244095,0.00044504,120]
[392184103,1761243044263,-151.0,0.00044504,120]
[392184105,1761243044273,-5606.0,0.00044504,2]
[392184107,1761243044282,-514.0916845,0.00044596,60]
[392184109,1761243044291,-5606.0,0.000446,30]
[392184111,1761243044301,-2027.07859907,0.00044625,15]
[392184114,1761243044312,-12505.9548625,0.00044657,3]
[392184116,1761243044321,-1288.13400577,0.00044667,15]
[392184118,1761243044331,-222.18367181,0.00044667,2]
[392184120,1761243044340,-24666.6064671,0.00044668,3]
[392184122,1761243044350,-12505.9548625,0.00044668,3]
[392184124,1761243044359,-37517.8645876,0.00044677,3]
[392184125,1761243044369,-151.0,0.00044678,120]
[392184128,1761243044378,-151.0,0.00044678,120]
[392184130,1761243044388,-253.818853,0.00044678,120]
[392184132,1761243044397,-253.818853,0.00044678,120]
[392184133,1761243044407,-151.0,0.00044678,120]
[392184135,1761243044417,-151.0,0.00044678,120]
[392184138,1761243044427,-152.680624,0.00044678,120]
[392184139,1761243044436,-151.0,0.00044678,120]
[392184142,1761243044446,-151.0,0.00044678,120]
[392184144,1761243044456,-152.433168,0.00044678,120]
[392184146,1761243044466,-151.0,0.00044678,120]
[392184148,1761243044475,-151.0,0.00044678,120]
[392184150,1761243044485,-151.0,0.00044678,120]
[392184152,1761243044494,-153.882115,0.00044678,120]
[392184154,1761243044504,-162.198999,0.00044678,120]
[392184156,1761243044513,-151.0,0.00044678,120]
[392184158,1761243044522,-151.0,0.00044678,120]
[392184160,1761243044531,-151.0,0.00044678,120]
[392184162,1761243044541,-151.0,0.00044678,120]
[392184164,1761243044550,-1047.679057,0.00044678,120]
[392184166,1761243044560,-151.0,0.00044678,120]
[392184168,1761243044569,-1047.679057,0.00044678,120]
[392184170,1761243044581,-1047.679057,0.00044678,120]
[392184172,1761243044590,-1047.679057,0.00044678,120]
[392184174,1761243044599,-151.0,0.00044678,120]
[392184176,1761243044608,-151.0,0.00044678,120]
[392184178,1761243044618,-151.0,0.00044678,120]
[392184180,1761243044627,-151.0,0.00044678,60]
[392184181,1761243044637,-151.0,0.00044678,120]
[392184182,1761243044647,-151.0,0.00044678,120]
[392184183,1761243044656,-151.0,0.00044678,120]
[392184184,1761243044666,-151.0,0.00044678,120]
[392184185,1761243044675,-151.0,0.00044678,120]
[392184186,1761243044685,-217.630516,0.00044678,120]
[392184188,1761243044694,-151.0,0.00044678,120]
[392184190,1761243044704,-151.0,0.00044678,120]
[392184192,1761243044714,-217.630516,0.00044678,120]
[392184194,1761243044723,-151.0,0.00044678,120]
[392184196,1761243044733,-177.703567,0.00044678,120]
[392184198,1761243044742,-217.630516,0.00044678,120]
[392184200,1761243044751,-151.0,0.00044678,120]
[392184202,1761243044760,-151.0,0.00044678,120]
[392184217,1761243044883,-217.630516,0.00044678,120]
[392184219,1761243044893,-5606.0,0.00044685,120]
[392184221,1761243044902,-151.0,0.00044687,120]
[392184223,1761243044911,-156.760659,0.00044687,120]
[392184225,1761243044921,-500.0,0.00044687,7]
[392184227,1761243044930,-370.15,0.00044687,120]
[392184229,1761243044939,-75721.9005,0.00044687,2]
[392184231,1761243044948,-258.0,0.00044787,2]
[392184233,1761243044957,-12505.9548625,0.00044867,3]
[392184235,1761243044967,-161.683,0.00044877,2]
[392184237,1761243044976,-3411.0,0.00044877,2]
[392184239,1761243044986,-572.0,0.00044877,2]
[392184241,1761243044995,-818.0,0.00044877,2]
[392184243,1761243045004,-2053.0,0.00044877,2]
[392184245,1761243045014,-631.83,0.00044889,120]
[392184247,1761243045028,-600.88,0.00044889,120]
[392184249,1761243045037,-1001.7878,0.00044899,2]
[392184251,1761243045047,-253.75186028,0.000449,2]
[392184253,1761243045056,-2027.07859907,0.0004492,15]
[392184255,1761243045066,-1288.13400577,0.0004492,15]
[392184257,1761243045078,-160.53137192,0.0004493,17]
[392184259,1761243045087,-154.0906689,0.0004493,15]
[392184261,1761243045096,-253.75186027,0.00044932,2]
[392184263,1761243045107,-771.45494963,0.00044953,7]
[392184265,1761243045116,-151.0,0.0004496,120]
[392184267,1761243045125,-151.0,0.0004496,120]
[392184269,1761243045135,-151.0,0.0004496,120]
[392184271,1761243045144,-151.0,0.0004496,120]
[392184273,1761243045153,-151.0,0.0004496,120]
[392184275,1761243045163,-686.623495,0.0004496,30]
[392184277,1761243045173,-151.0,0.0004496,120]
[392184279,1761243045182,-151.0,0.0004496,120]
[392184281,1761243045191,-500.0,0.0004496,2]
[392184283,1761243045200,-151.0,0.0004496,120]
[392184285,1761243045209,-151.0,0.0004496,120]
[392184287,1761243045219,-151.0,0.0004496,120]
[392184289,1761243045228,-152.122302,0.0004496,60]
[392184291,1761243045237,-151.0,0.0004496,120]
[392184293,1761243045247,-151.0,0.0004496,120]
[392184295,1761243045257,-50023.8194502,0.0004496,3]
[392184297,1761243045266,-50023.8194502,0.00044963,3]
[392184299,1761243045275,-151.0,0.00044963,120]
[392184301,1761243045284,-151.0,0.00044963,120]
[392184303,1761243045293,-253.818853,0.00044963,120]
[392184305,1761243045302,-253.818853,0.00044963,120]
[392184307,1761243045311,-253.75186027,0.00044964,2]
[392184309,1761243045320,-12505.9548625,0.00044966,3]
[392184311,1761243045330,-1047.679057,0.00044966,120]
[392184313,1761243045339,-265.687019,0.00044966,120]
[392184315,1761243045348,-1047.679057,0.00044966,120]
[392184317,1761243045357,-1047.679057,0.00044966,120]
[392184319,1761243045366,-1047.679057,0.00044966,120]
[392184321,1761243045375,-151.0,0.00044966,120]
[392184323,1761243045384,-151.0,0.00044966,120]
[392184325,1761243045394,-151.0,0.00044966,120]
[392184327,1761243045403,-151.0,0.00044966,60]
[392184329,1761243045412,-204.12756,0.00044969,120]
[392184331,1761243045422,-204.12756,0.00044969,120]
[392184333,1761243045430,-204.12756,0.00044969,120]
[392184335,1761243045439,-204.12756,0.00044969,120]
[392184337,1761243045448,-96973.48246368,0.0004497,120]
[392184339,1761243045457,-151.0,0.0004497,120]
[392184341,1761243045466,-151.0,0.0004497,120]
[392184343,1761243045476,-151.0,0.0004497,120]
[392184345,1761243045485,-151.0,0.0004497,120]
[392184347,1761243045494,-151.0,0.0004497,120]
[392184349,1761243045504,-151.0,0.0004497,120]
[392184351,1761243045513,-151.0,0.0004497,120]
[392184353,1761243045522,-151.0,0.0004497,120]
[392184355,1761243045532,-151.0,0.0004497,120]
[392184357,1761243045541,-151.0,0.0004497,120]
[392184359,1761243045550,-151.0,0.0004497,120]
[392184360,1761243045559,-151.0,0.0004497,120]
[392184363,1761243045568,-151.0,0.0004497,120]
[392184365,1761243045577,-151.0,0.0004497,120]
[392184367,1761243045587,-151.0,0.0004497,120]
[392184369,1761243045596,-151.0,0.0004497,120]
[392184371,1761243045606,-151.0,0.0004497,120]
[392184373,1761243045615,-217.630516,0.0004497,120]
[392184374,1761243045624,-151.0,0.0004497,120]
[392184375,1761243045634,-217.630516,0.0004497,120]
[392184376,1761243045643,-151.0,0.0004497,120]
[392184377,1761243045652,-151.0,0.0004497,120]
[392184378,1761243045662,-217.630516,0.0004497,120]
[392184379,1761243045671,-151.0,0.0004497,120]
[392184381,1761243045681,-151.0,0.0004497,120]
[392184383,1761243045690,-217.630516,0.0004497,120]
[392184385,1761243045699,-500.0,0.00044972,2]
[392184388,1761243045708,-500.0,0.00044973,10]
[392184390,1761243045717,-500.0,0.00044973,10]
[392184392,1761243045726,-500.0,0.00044973,10]
[392184394,1761243045735,-500.0,0.00044973,10]
[392184396,1761243045743,-500.0,0.00044973,10]
[392184398,1761243045753,-500.0,0.00044973,10]
[392184400,1761243045762,-500.0,0.00044973,10]
[392184402,1761243045771,-500.0,0.00044973,10]
[392184404,1761243045780,-160.15265772,0.00044973,2]
[392184406,1761243045789,-500.0,0.00044973,10]
[392184408,1761243045799,-200.0,0.00044973,10]
[392184410,1761243045808,-500.0,0.00044973,10]
[392184412,1761243045817,-500.0,0.00044973,10]
[392184414,1761243045826,-500.0,0.00044973,10]
[392184416,1761243045836,-500.0,0.00044973,10]
[392184418,1761243045846,-500.0,0.00044973,10]
[392184420,1761243045855,-500.0,0.00044973,10]
[392184422,1761243045865,-500.0,0.00044973,10]
[392184424,1761243045874,-151.0,0.00044973,120]
[392184426,1761243045884,-151.0,0.00044973,120]
[392184428,1761243045895,-2468.3396743,0.00044973,2]
[392184430,1761243045905,-28219.542119,0.00044973,2]
[392184432,1761243045914,-150.0,0.00044976,2]
[392184434,1761243045924,-150.0,0.00044976,2]
[392184436,1761243045933,-150.0,0.00044976,2]
[392184438,1761243045942,-287.24101348,0.00044976,60]
[392184441,1761243045953,-500.0,0.00044976,2]
[392184442,1761243045963,-500.0,0.00044976,2]
[392184445,1761243045972,-500.0,0.00044976,2]
[392184447,1761243045981,-150.0,0.00044976,2]
[392184448,1761243045990,-500.0,0.00044976,2]
[392184450,1761243046000,-150.0,0.00044976,2]
[392184452,1761243046010,-500.0,0.00044976,2]
[392184454,1761243046021,-150.0,0.00044976,15]
[392184457,1761243046034,-500.0,0.00044976,15]
[392184459,1761243046043,-150.0,0.00044976,15]
[392184461,1761243046052,-500.0,0.00044976,15]
[392184463,1761243046062,-500.0,0.00044976,120]
[392184466,1761243046072,-150.0,0.00044976,15]
[392184468,1761243046081,-150.0,0.00044976,15]
[392184470,1761243046090,-500.0,0.00044976,15]
[392184472,1761243046100,-500.0,0.00044976,15]
[392184474,1761243046110,-150.45108351,0.00044976,15]
[392184476,1761243046119,-500.0,0.00044976,15]
[392184478,1761243046129,-500.0,0.00044976,15]
[392184480,1761243046138,-150.0,0.00044976,15]
[392184482,1761243046148,-500.0,0.00044976,15]
[392184484,1761243046157,-500.0,0.00044976,15]
[392184486,1761243046166,-150.0,0.00044976,15]
[392184488,1761243046176,-300.0,0.00044976,15]
[392184490,1761243046185,-168.495536,0.00044976,120]
[392184492,1761243046194,-151.0,0.00044976,120]
[392184494,1761243046203,-151.0,0.00044976,120]
[392184496,1761243046212,-686.623495,0.00044976,30]
[392184498,1761243046222,-151.0,0.00044976,120]
[392184500,1761243046231,-151.0,0.00044976,120]
[392184502,1761243046240,-151.0,0.00044976,120]
[392184504,1761243046249,-151.0,0.00044976,120]
[392184506,1761243046259,-151.0,0.00044976,120]
[392184508,1761243046268,-500.0,0.00044976,15]
[392184510,1761243046277,-150.0,0.00044976,2]
[392184512,1761243046286,-150.0,0.00044976,15]
[392184514,1761243046295,-500.0,0.00044976,15]
[392184516,1761243046304,-150.0,0.00044976,15]
[392184518,1761243046313,-150.0,0.00044976,2]
[392184520,1761243046322,-157.40184898,0.00044976,15]
[392184522,1761243046331,-153.93268946,0.00044976,15]
[392184524,1761243046341,-150.0,0.00044976,15]
[392184526,1761243046351,-500.0,0.00044976,15]
[392184528,1761243046360,-12505.9548625,0.00044979,3]
[392184530,1761243046370,-151.0,0.00044979,120]
[392184532,1761243046379,-327.49272,0.0004498,26]
[392184535,1761243046390,-39037.56776752,0.00044989,30]
[392184537,1761243046400,-12505.9548625,0.00044989,3]
[392184539,1761243046409,-151.0,0.00044989,120]
[392184541,1761243046419,-253.818853,0.00044989,120]
[392184542,1761243046428,-253.818853,0.00044989,120]
[392184545,1761243046438,-1047.679057,0.00044989,120]
[392184547,1761243046447,-1047.679057,0.00044989,120]
[392184549,1761243046456,-1047.679057,0.00044989,120]
[392184551,1761243046466,-1047.679057,0.00044989,120]
[392184553,1761243046475,-151.0,0.00044989,120]
[392184555,1761243046486,-151.0,0.00044989,120]
[392184557,1761243046499,-151.496635,0.00044989,120]
[392184559,1761243046517,-214.283359,0.00044989,60]
[392184561,1761243046527,-50023.8194502,0.0004499,3]
[392184563,1761243046537,-771.45494963,0.0004499,7]
[392184565,1761243046548,-311.7843581,0.00044999,30]
[392184566,1761243046557,-151.0,0.00044999,120]
[392184567,1761243046568,-204.12756,0.00044999,120]
[392184568,1761243046577,-204.12756,0.00044999,120]
[392184569,1761243046586,-204.12756,0.00044999,120]
[392184570,1761243046595,-204.12756,0.00044999,120]
[392184571,1761243046604,-500.0,0.00044999,7]
[392184573,1761243046613,-500.0,0.00044999,7]
[392184575,1761243046623,-361.45984887,0.00044999,7]
[392184577,1761243046632,-1041.44696634,0.00044999,14]
[392184579,1761243046641,-500.0,0.00044999,2]
[392184581,1761243046650,-500.0,0.00044999,2]
[392184583,1761243046659,-500.0,0.00044999,2]
[392184585,1761243046669,-500.0,0.00044999,2]
[392184587,1761243046678,-500.0,0.00044999,2]
[392184589,1761243046687,-500.0,0.00044999,2]
[392184591,1761243046696,-500.0,0.00044999,2]
[392184593,1761243046706,-13527.5195711,0.00045,18]
[392184595,1761243046715,-1000.0,0.00045,120]
[392184597,1761243046725,-368578.47077056,0.00045,120]
[392184599,1761243046734,-522007.6998757,0.00045,120]
[392184608,1761243046808,-4300.00000001,0.00045,120]
[392184626,1761243046975,-189.62453401,0.00042356,31]
[392184628,1761243046985,-393.71707079,0.00042356,31]
[392184631,1761243046996,-106.28292921,0.00042356,31]
[392184632,1761243047006,-259.92272943,0.00042356,31]
[392184634,1761243047015,-277.0107447,0.00042356,31]
[392184635,1761243047029,-500.0,0.00043835,120]
[392184637,1761243047038,-500.0,0.00043835,120]
[392184638,1761243047047,-322.79663295,0.00043835,120]
[392184640,1761243047058,-177.20336705,0.00043835,120]
[392184641,1761243047068,-192.84,0.00043835,120]
[392184643,1761243047078,-1108.60225383,0.00044085,2]
[392184675,1761243047567,-480.636446,0.00043907,30]
[392184677,1761243047577,-151.0,0.00043907,120]
[392184679,1761243047585,-137.78185926,0.00043937,30]
[392184681,1761243047604,-409.67814074,0.00043937,30]
[392184683,1761243047613,-1222.12252873,0.00044085,2]
[392184684,1761243047623,-218.27521744,0.00044085,2]
[392184686,1761243047632,-480.636446,0.00044678,30]
[392184688,1761243047641,-151.0,0.00044678,120]